[Event "Chessable Masters - Torneo preliminare"]
[White "Anton Guijarro, David"]
[Black "Sevian, Samuel"]
[WhiteFideId "2285525"]
[BlackFideId "2040506"]
[WhiteElo "2635"]
[BlackElo "2582"]
[Result "1/2-1/2"]
[Round "3"]
[TimeControl "600+2"]
[Date "2023.03.13"]
[WhiteClock "0:00:12"]
[BlackClock "0:00:21"]

1. e4 {[%clk 0:10:01]}  e5 {[%clk 0:09:58]} 2. Nf3 {[%clk 0:10:02]}  Nc6 {[%clk 0:10:00]} 3. Bc4 {[%clk 0:09:59]}  Bc5 {[%clk 0:09:58]} 4. O-O {[%clk 0:09:59]}  Nf6 {[%clk 0:09:59]} 5. d3 {[%clk 0:10:00]}  d6 {[%clk 0:10:00]} 6. a4 {[%clk 0:10:00]}  h6 {[%clk 0:09:42]} 7. Be3 {[%clk 0:09:51]}  Bb6 {[%clk 0:08:15]} 8. Nbd2 {[%clk 0:09:06]}  O-O {[%clk 0:08:14]} 9. h3 {[%clk 0:08:32]}  Be6 {[%clk 0:07:58]} 10. Bxe6 {[%clk 0:08:19]}  fxe6 {[%clk 0:07:58]} 11. c3 {[%clk 0:08:13]}  Bxe3 {[%clk 0:07:35]} 12. fxe3 {[%clk 0:08:15]}  a5 {[%clk 0:07:36]} 13. Qb3 {[%clk 0:08:03]}  Qd7 {[%clk 0:07:35]} 14. d4 {[%clk 0:08:02]}  b6 {[%clk 0:06:46]} 15. Rad1 {[%clk 0:06:24]}  Rae8 {[%clk 0:06:46]} 16. Qb5 {[%clk 0:06:03]}  exd4 {[%clk 0:06:35]} 17. exd4 {[%clk 0:05:59]}  e5 {[%clk 0:06:32]} 18. d5 {[%clk 0:05:19]}  Ne7 {[%clk 0:06:00]} 19. Qxd7 {[%clk 0:05:20]}  Nxd7 {[%clk 0:06:00]} 20. b4 {[%clk 0:05:22]}  Ra8 {[%clk 0:05:55]} 21. Ra1 {[%clk 0:05:23]}  Ra7 {[%clk 0:05:33]} 22. Nc4 {[%clk 0:05:10]}  Rfa8 {[%clk 0:05:11]} 23. bxa5 {[%clk 0:05:11]}  bxa5 {[%clk 0:05:07]} 24. Rfb1 {[%clk 0:05:10]}  Nc5 {[%clk 0:04:30]} 25. Nfd2 {[%clk 0:05:08]}  Rb7 {[%clk 0:03:38]} 26. Rxb7 {[%clk 0:04:44]}  Nxb7 {[%clk 0:03:40]} 27. Nb3 {[%clk 0:04:37]}  Nc8 {[%clk 0:03:35]} 28. Rb1 {[%clk 0:04:00]}  Kh7 {[%clk 0:03:27]} 29. Kf2 {[%clk 0:03:46]}  Ra6 {[%clk 0:03:27]} 30. Ke3 {[%clk 0:03:17]}  Nb6 {[%clk 0:03:19]} 31. Nb2 {[%clk 0:01:59]}  Nd7 {[%clk 0:03:18]} 32. Nc4 {[%clk 0:01:42]}  Ndc5 {[%clk 0:02:54]} 33. Nxc5 {[%clk 0:00:56]}  Nxc5 {[%clk 0:02:56]} 34. Rb5 {[%clk 0:00:54]}  Nxa4 {[%clk 0:02:51]} 35. Rxa5 {[%clk 0:00:55]}  Rxa5 {[%clk 0:02:52]} 36. Nxa5 {[%clk 0:00:57]}  Nxc3 {[%clk 0:02:30]} 37. Nc6 {[%clk 0:00:55]}  Kg6 {[%clk 0:02:21]} 38. g3 {[%clk 0:00:31]}  Kf6 {[%clk 0:02:18]} 39. Kd3 {[%clk 0:00:29]}  Na4 {[%clk 0:02:18]} 40. Ke3 {[%clk 0:00:30]}  Nc5 {[%clk 0:02:19]} 41. Nb4 {[%clk 0:00:27]}  Ke7 {[%clk 0:02:15]} 42. Nc6+ {[%clk 0:00:27]}  Kf6 {[%clk 0:02:12]} 43. Nb4 {[%clk 0:00:27]}  g6 {[%clk 0:02:11]} 44. Nc6 {[%clk 0:00:28]}  Kf7 {[%clk 0:02:12]} 45. Nd8+ {[%clk 0:00:29]}  Ke8 {[%clk 0:02:11]} 46. Nc6 {[%clk 0:00:30]}  Nb7 {[%clk 0:02:13]} 47. Nb4 {[%clk 0:00:27]}  Kd7 {[%clk 0:02:12]} 48. Kd3 {[%clk 0:00:25]}  Nd8 {[%clk 0:01:56]} 49. h4 {[%clk 0:00:22]}  h5 {[%clk 0:01:53]} 50. Nc2 {[%clk 0:00:22]}  Nb7 {[%clk 0:01:43]} 51. Ke2 {[%clk 0:00:20]}  Nc5 {[%clk 0:01:32]} 52. Kf3 {[%clk 0:00:21]}  Nb3 {[%clk 0:01:30]} 53. Ke3 {[%clk 0:00:15]}  Kc8 {[%clk 0:01:18]} 54. Nb4 {[%clk 0:00:14]}  Na5 {[%clk 0:01:20]} 55. Kf3 {[%clk 0:00:12]}  Nc4 {[%clk 0:01:13]} 56. Ke2 {[%clk 0:00:13]}  Kd7 {[%clk 0:01:07]} 57. Nc6 {[%clk 0:00:13]}  Na3 {[%clk 0:01:04]} 58. Nb8+ {[%clk 0:00:14]}  Ke8 {[%clk 0:01:05]} 59. Nc6 {[%clk 0:00:15]}  Nb5 {[%clk 0:01:06]} 60. Ke3 {[%clk 0:00:15]}  Nc3 {[%clk 0:01:03]} 61. Kd3 {[%clk 0:00:14]}  Na4 {[%clk 0:01:05]} 62. Ke3 {[%clk 0:00:15]}  Nc5 {[%clk 0:01:06]} 63. Kf3 {[%clk 0:00:17]}  Nb7 {[%clk 0:01:07]} 64. g4 {[%clk 0:00:17]}  Nd8 {[%clk 0:01:04]} 65. Nb4 {[%clk 0:00:13]}  Kd7 {[%clk 0:00:54]} 66. gxh5 {[%clk 0:00:11]}  gxh5 {[%clk 0:00:56]} 67. Nc2 {[%clk 0:00:12]}  Nf7 {[%clk 0:00:54]} 68. Ne3 {[%clk 0:00:11]}  Nh8 {[%clk 0:00:54]} 69. Nf5 {[%clk 0:00:12]}  Ng6 {[%clk 0:00:56]} 70. Kg3 {[%clk 0:00:12]}  c6 {[%clk 0:00:54]} 71. dxc6+ {[%clk 0:00:11]}  Kxc6 {[%clk 0:00:56]} 72. Kf3 {[%clk 0:00:11]}  Kc5 {[%clk 0:00:53]} 73. Ke3 {[%clk 0:00:12]}  Nf4 {[%clk 0:00:55]} 74. Kf3 {[%clk 0:00:09]}  Kc6 {[%clk 0:00:50]} 75. Ke3 {[%clk 0:00:08]}  Kd7 {[%clk 0:00:52]} 76. Ng3 {[%clk 0:00:07]}  Ke6 {[%clk 0:00:52]} 77. Kf3 {[%clk 0:00:08]}  Kf6 {[%clk 0:00:52]} 78. Nf1 {[%clk 0:00:06]}  Ng6 {[%clk 0:00:50]} 79. Kg3 {[%clk 0:00:07]}  Ke6 {[%clk 0:00:47]} 80. Ne3 {[%clk 0:00:08]}  Ne7 {[%clk 0:00:49]} 81. Kf3 {[%clk 0:00:09]}  d5 {[%clk 0:00:46]} 82. exd5+ {[%clk 0:00:10]}  Nxd5 {[%clk 0:00:48]} 83. Nf1 {[%clk 0:00:11]}  Nf6 {[%clk 0:00:44]} 84. Ng3 {[%clk 0:00:11]}  Kd5 {[%clk 0:00:46]} 85. Ke3 {[%clk 0:00:12]}  Ke6 {[%clk 0:00:34]} 86. Kf3 {[%clk 0:00:12]}  Kf7 {[%clk 0:00:35]} 87. Ke3 {[%clk 0:00:12]}  Kg6 {[%clk 0:00:36]} 88. Kf3 {[%clk 0:00:13]}  Kg7 {[%clk 0:00:33]} 89. Nf5+ {[%clk 0:00:12]}  Kf7 {[%clk 0:00:32]} 90. Ng3 {[%clk 0:00:14]}  Ke6 {[%clk 0:00:32]} 91. Ke3 {[%clk 0:00:15]}  Kd5 {[%clk 0:00:32]} 92. Nf5 {[%clk 0:00:06]}  Kc4 {[%clk 0:00:21]} 93. Ng3 {[%clk 0:00:06]}  Kc5 {[%clk 0:00:21]} 94. Kd3 {[%clk 0:00:05]}  Kd5 {[%clk 0:00:21]} 95. Ke3 {[%clk 0:00:06]}  e4 {[%clk 0:00:22]} 96. Kf4 {[%clk 0:00:07]}  Kd4 {[%clk 0:00:24]} 97. Kf5 {[%clk 0:00:05]}  Nd5 {[%clk 0:00:12]} 98. Nxe4 {[%clk 0:00:06]}  Ne3+ {[%clk 0:00:14]} 99. Kg5 {[%clk 0:00:07]}  Kxe4 {[%clk 0:00:15]} 100. Kxh5 {[%clk 0:00:09]}  Kf5 {[%clk 0:00:17]} 101. Kh6 {[%clk 0:00:10]}  Kf6 {[%clk 0:00:19]} 102. Kh5 {[%clk 0:00:11]}  Nf5 {[%clk 0:00:19]} 103. Kg4 {[%clk 0:00:12]}  Nxh4 {[%clk 0:00:21]} 1/2-1/2


[Site "Internet"]

[Event "Chessable Masters - Torneo preliminare"]
[White "Terry, Renato"]
[Black "Andreikin, Dmitry"]
[WhiteFideId "3803457"]
[BlackFideId "4158814"]
[WhiteElo "2472"]
[BlackElo "2628"]
[Result "1/2-1/2"]
[Round "3"]
[TimeControl "600+2"]
[Date "2023.03.13"]
[WhiteClock "0:00:11"]
[BlackClock "0:00:22"]

1. Nf3 {[%clk 0:09:47]}  d5 {[%clk 0:09:59]} 2. e3 {[%clk 0:09:37]}  Nf6 {[%clk 0:09:54]} 3. b3 {[%clk 0:09:38]}  Bf5 {[%clk 0:09:25]} 4. Bb2 {[%clk 0:09:38]}  e6 {[%clk 0:09:24]} 5. Bd3 {[%clk 0:09:22]}  Bxd3 {[%clk 0:09:15]} 6. cxd3 {[%clk 0:09:24]}  c5 {[%clk 0:09:00]} 7. d4 {[%clk 0:09:23]}  Nc6 {[%clk 0:09:00]} 8. O-O {[%clk 0:09:23]}  Rc8 {[%clk 0:09:01]} 9. Qe2 {[%clk 0:09:20]}  a6 {[%clk 0:09:00]} 10. dxc5 {[%clk 0:09:13]}  Bxc5 {[%clk 0:09:00]} 11. Rc1 {[%clk 0:09:14]}  Bd6 {[%clk 0:08:47]} 12. d3 {[%clk 0:08:55]}  O-O {[%clk 0:08:46]} 13. Nbd2 {[%clk 0:08:47]}  e5 {[%clk 0:08:44]} 14. Nh4 {[%clk 0:06:29]}  Re8 {[%clk 0:08:31]} 15. Nf5 {[%clk 0:06:29]}  Bf8 {[%clk 0:08:30]} 16. Nf3 {[%clk 0:06:03]}  Qd7 {[%clk 0:07:58]} 17. Ng3 {[%clk 0:05:58]}  Bd6 {[%clk 0:07:46]} 18. Qd2 {[%clk 0:05:37]}  Qe6 {[%clk 0:07:31]} 19. Rc2 {[%clk 0:05:18]}  Nb4 {[%clk 0:07:08]} 20. Rxc8 {[%clk 0:05:18]}  Rxc8 {[%clk 0:07:09]} 21. Bc3 {[%clk 0:05:14]}  Nc6 {[%clk 0:05:12]} 22. Rc1 {[%clk 0:05:12]}  h6 {[%clk 0:05:10]} 23. Bb2 {[%clk 0:05:02]}  Nd7 {[%clk 0:05:05]} 24. e4 {[%clk 0:04:43]}  Bf8 {[%clk 0:04:45]} 25. Qe3 {[%clk 0:04:05]}  d4 {[%clk 0:04:19]} 26. Qd2 {[%clk 0:04:00]}  a5 {[%clk 0:04:21]} 27. Ne1 {[%clk 0:03:22]}  a4 {[%clk 0:04:04]} 28. bxa4 {[%clk 0:02:17]}  Qxa2 {[%clk 0:04:03]} 29. Ra1 {[%clk 0:02:18]}  Qb3 {[%clk 0:04:03]} 30. Ne2 {[%clk 0:02:03]}  Bb4 {[%clk 0:03:34]} 31. Qc2 {[%clk 0:02:03]}  Nc5 {[%clk 0:03:34]} 32. Qxb3 {[%clk 0:01:56]}  Nxb3 {[%clk 0:03:35]} 33. Rb1 {[%clk 0:01:58]}  Bxe1 {[%clk 0:03:22]} 34. Ba3 {[%clk 0:01:46]}  Bxf2+ {[%clk 0:01:55]} 35. Kxf2 {[%clk 0:01:48]}  Nca5 {[%clk 0:01:57]} 36. Bb4 {[%clk 0:01:50]}  f6 {[%clk 0:01:48]} 37. Bxa5 {[%clk 0:01:47]}  Nxa5 {[%clk 0:01:48]} 38. Rb5 {[%clk 0:01:49]}  Ra8 {[%clk 0:01:50]} 39. g4 {[%clk 0:01:33]}  Ra7 {[%clk 0:01:42]} 40. Ng3 {[%clk 0:01:25]}  g6 {[%clk 0:01:38]} 41. h4 {[%clk 0:01:26]}  Nc6 {[%clk 0:01:39]} 42. h5 {[%clk 0:01:27]}  gxh5 {[%clk 0:01:35]} 43. Nxh5 {[%clk 0:01:08]}  Kf7 {[%clk 0:01:35]} 44. Rb6 {[%clk 0:00:59]}  Ke7 {[%clk 0:01:20]} 45. a5 {[%clk 0:00:52]}  Nxa5 {[%clk 0:00:43]} 46. Rxf6 {[%clk 0:00:53]}  Ra6 {[%clk 0:00:44]} 47. Rf5 {[%clk 0:00:50]}  Nc6 {[%clk 0:00:45]} 48. Nf6 {[%clk 0:00:38]}  Ra2+ {[%clk 0:00:33]} 49. Ke1 {[%clk 0:00:32]}  Nb4 {[%clk 0:00:32]} 50. Nd5+ {[%clk 0:00:32]}  Nxd5 {[%clk 0:00:32]} 51. Rxe5+ {[%clk 0:00:34]}  Kf6 {[%clk 0:00:26]} 52. Rxd5 {[%clk 0:00:35]}  Ra4 {[%clk 0:00:26]} 53. Ke2 {[%clk 0:00:28]}  Ke6 {[%clk 0:00:20]} 54. Kf3 {[%clk 0:00:29]}  Rb4 {[%clk 0:00:22]} 55. Kf4 {[%clk 0:00:29]}  b5 {[%clk 0:00:23]} 56. Rh5 {[%clk 0:00:30]}  Rb3 {[%clk 0:00:23]} 57. Rxh6+ {[%clk 0:00:32]}  Ke7 {[%clk 0:00:24]} 58. Rb6 {[%clk 0:00:29]}  Rxd3 {[%clk 0:00:22]} 59. Rxb5 {[%clk 0:00:30]}  Rd1 {[%clk 0:00:24]} 60. Re5+ {[%clk 0:00:22]}  Kf7 {[%clk 0:00:23]} 61. Rd5 {[%clk 0:00:20]}  Ke6 {[%clk 0:00:16]} 62. g5 {[%clk 0:00:15]}  Rf1+ {[%clk 0:00:18]} 63. Kg3 {[%clk 0:00:15]}  Rg1+ {[%clk 0:00:19]} 64. Kf3 {[%clk 0:00:16]}  d3 {[%clk 0:00:17]} 65. Ke3 {[%clk 0:00:14]}  Rg3+ {[%clk 0:00:16]} 66. Kd2 {[%clk 0:00:15]}  Ke7 {[%clk 0:00:17]} 67. Ra5 {[%clk 0:00:12]}  Ke6 {[%clk 0:00:16]} 68. g6 {[%clk 0:00:12]}  Kf6 {[%clk 0:00:17]} 69. Rd5 {[%clk 0:00:05]}  Ke6 {[%clk 0:00:15]} 70. Kc3 {[%clk 0:00:03]}  Rxg6 {[%clk 0:00:14]} 71. Kxd3 {[%clk 0:00:04]}  Rg1 {[%clk 0:00:15]} 72. Ke3 {[%clk 0:00:05]}  Re1+ {[%clk 0:00:16]} 73. Kf3 {[%clk 0:00:06]}  Rf1+ {[%clk 0:00:17]} 74. Ke3 {[%clk 0:00:08]}  Re1+ {[%clk 0:00:19]} 75. Kf3 {[%clk 0:00:09]}  Rf1+ {[%clk 0:00:20]} 76. Ke3 {[%clk 0:00:11]}  Re1+ {[%clk 0:00:22]} 1/2-1/2


[Site "Internet"]

[Event "Chessable Masters - Torneo preliminare"]
[White "Vachier-Lagrave, Maxime"]
[Black "Drygalov, Sergey"]
[WhiteFideId "623539"]
[BlackFideId "24171743"]
[WhiteElo "2762"]
[BlackElo "2461"]
[Result "1-0"]
[Round "3"]
[TimeControl "600+2"]
[Date "2023.03.13"]
[WhiteClock "0:03:33"]
[BlackClock "0:00:20"]

1. e4 {[%clk 0:10:01]}  c6 {[%clk 0:09:55]} 2. d4 {[%clk 0:10:01]}  d5 {[%clk 0:09:56]} 3. e5 {[%clk 0:10:03]}  Bf5 {[%clk 0:09:50]} 4. Nf3 {[%clk 0:10:04]}  e6 {[%clk 0:09:49]} 5. Be2 {[%clk 0:10:05]}  Nd7 {[%clk 0:09:47]} 6. O-O {[%clk 0:10:05]}  h6 {[%clk 0:09:48]} 7. Nbd2 {[%clk 0:09:57]}  Ne7 {[%clk 0:09:46]} 8. c3 {[%clk 0:09:51]}  Qc7 {[%clk 0:09:45]} 9. Nb3 {[%clk 0:09:48]}  g5 {[%clk 0:09:03]} 10. Ne1 {[%clk 0:09:37]}  Bg7 {[%clk 0:08:30]} 11. Nd3 {[%clk 0:09:32]}  b6 {[%clk 0:08:27]} 12. Be3 {[%clk 0:09:20]}  c5 {[%clk 0:07:39]} 13. Nd2 {[%clk 0:09:20]}  O-O {[%clk 0:06:56]} 14. f4 {[%clk 0:09:02]}  f6 {[%clk 0:06:38]} 15. exf6 {[%clk 0:09:00]}  Bxf6 {[%clk 0:06:31]} 16. fxg5 {[%clk 0:08:53]}  hxg5 {[%clk 0:06:20]} 17. Nf3 {[%clk 0:08:38]}  g4 {[%clk 0:06:12]} 18. Bf4 {[%clk 0:08:28]}  Qd8 {[%clk 0:05:05]} 19. Nfe5 {[%clk 0:08:24]}  cxd4 {[%clk 0:04:48]} 20. cxd4 {[%clk 0:08:11]}  Nxe5 {[%clk 0:03:54]} 21. Nxe5 {[%clk 0:08:10]}  Be4 {[%clk 0:03:00]} 22. Bxg4 {[%clk 0:07:07]}  Nf5 {[%clk 0:03:00]} 23. Bxf5 {[%clk 0:06:58]}  exf5 {[%clk 0:02:54]} 24. a4 {[%clk 0:06:43]}  Rc8 {[%clk 0:02:54]} 25. Ra3 {[%clk 0:06:43]}  Bh4 {[%clk 0:02:22]} 26. Qh5 {[%clk 0:05:14]}  Rc2 {[%clk 0:02:16]} 27. Qg6+ {[%clk 0:04:09]}  Kh8 {[%clk 0:02:16]} 28. Nf7+ {[%clk 0:04:02]}  Rxf7 {[%clk 0:02:16]} 29. Be5+ {[%clk 0:04:03]}  Rf6 {[%clk 0:02:02]} 30. Rg3 {[%clk 0:03:49]}  Bxg3 {[%clk 0:01:24]} 31. Bxf6+ {[%clk 0:03:47]}  Qxf6 {[%clk 0:01:23]} 32. Qxf6+ {[%clk 0:03:49]}  Kh7 {[%clk 0:01:25]} 33. Rxf5 {[%clk 0:03:34]}  Rxg2+ {[%clk 0:00:21]} 34. Kf1 {[%clk 0:03:34]}  Rxh2 {[%clk 0:00:23]} 35. Qe7+ {[%clk 0:03:32]}  Kh6 {[%clk 0:00:20]} 36. Qg5+ {[%clk 0:03:33]} 1-0


[Site "Internet"]

[Event "Chessable Masters - Torneo preliminare"]
[White "Van Foreest, Jorden"]
[Black "Aronian, Levon"]
[WhiteFideId "1039784"]
[BlackFideId "13300474"]
[WhiteElo "2682"]
[BlackElo "2720"]
[Result "0-1"]
[Round "3"]
[TimeControl "600+2"]
[Date "2023.03.13"]
[WhiteClock "0:00:07"]
[BlackClock "0:02:34"]

1. e4 {[%clk 0:10:00]}  e5 {[%clk 0:09:59]} 2. Nf3 {[%clk 0:10:00]}  Nc6 {[%clk 0:10:00]} 3. Bb5 {[%clk 0:10:00]}  a6 {[%clk 0:10:00]} 4. Ba4 {[%clk 0:10:02]}  Nf6 {[%clk 0:10:01]} 5. O-O {[%clk 0:10:02]}  Be7 {[%clk 0:10:02]} 6. Re1 {[%clk 0:10:01]}  b5 {[%clk 0:10:03]} 7. Bb3 {[%clk 0:10:02]}  O-O {[%clk 0:10:04]} 8. d3 {[%clk 0:10:00]}  d6 {[%clk 0:10:03]} 9. c3 {[%clk 0:10:00]}  Re8 {[%clk 0:10:01]} 10. h3 {[%clk 0:09:50]}  Bf8 {[%clk 0:09:59]} 11. Bg5 {[%clk 0:09:45]}  h6 {[%clk 0:09:59]} 12. Bh4 {[%clk 0:09:45]}  Nb8 {[%clk 0:08:24]} 13. a4 {[%clk 0:09:42]}  Bb7 {[%clk 0:08:18]} 14. Na3 {[%clk 0:09:41]}  c6 {[%clk 0:08:18]} 15. Nc2 {[%clk 0:09:32]}  Nbd7 {[%clk 0:08:17]} 16. Ne3 {[%clk 0:09:21]}  Qc7 {[%clk 0:08:15]} 17. Nh2 {[%clk 0:09:13]}  d5 {[%clk 0:08:15]} 18. Nhg4 {[%clk 0:08:24]}  Nxg4 {[%clk 0:08:12]} 19. Qxg4 {[%clk 0:08:09]}  Nc5 {[%clk 0:07:59]} 20. Bc2 {[%clk 0:08:08]}  dxe4 {[%clk 0:07:50]} 21. dxe4 {[%clk 0:08:06]}  Bc8 {[%clk 0:07:30]} 22. Qf3 {[%clk 0:07:55]}  Be6 {[%clk 0:07:23]} 23. axb5 {[%clk 0:07:33]}  axb5 {[%clk 0:07:16]} 24. b4 {[%clk 0:06:34]}  Na4 {[%clk 0:07:12]} 25. Ng4 {[%clk 0:06:32]}  c5 {[%clk 0:06:43]} 26. bxc5 {[%clk 0:06:02]}  Qxc5 {[%clk 0:06:42]} 27. Re3 {[%clk 0:05:59]}  Nb2 {[%clk 0:06:13]} 28. Rxa8 {[%clk 0:05:46]}  Rxa8 {[%clk 0:06:15]} 29. Qg3 {[%clk 0:05:47]}  Nc4 {[%clk 0:06:06]} 30. Re1 {[%clk 0:05:08]}  Kh7 {[%clk 0:05:57]} 31. Qf3 {[%clk 0:04:02]}  Ra3 {[%clk 0:05:48]} 32. Bg3 {[%clk 0:03:49]}  Be7 {[%clk 0:05:09]} 33. Kh2 {[%clk 0:02:56]}  Bg5 {[%clk 0:04:55]} 34. Qe2 {[%clk 0:00:46]}  Rxc3 {[%clk 0:04:46]} 35. Bd3 {[%clk 0:00:48]}  b4 {[%clk 0:04:23]} 36. f3 {[%clk 0:00:36]}  b3 {[%clk 0:04:11]} 37. Bf2 {[%clk 0:00:37]}  Qa3 {[%clk 0:03:57]} 38. h4 {[%clk 0:00:34]}  Be7 {[%clk 0:03:52]} 39. Bb1 {[%clk 0:00:28]}  Rc1 {[%clk 0:03:37]} 40. f4 {[%clk 0:00:22]}  Rxe1 {[%clk 0:03:31]} 41. Bxe1 {[%clk 0:00:24]}  Qc1 {[%clk 0:02:58]} 42. f5 {[%clk 0:00:15]}  Qxb1 {[%clk 0:02:56]} 43. fxe6 {[%clk 0:00:15]}  Qc2 {[%clk 0:02:57]} 44. Qf3 {[%clk 0:00:10]}  fxe6 {[%clk 0:02:58]} 45. Nxh6 {[%clk 0:00:06]}  Kxh6 {[%clk 0:02:45]} 46. Qf7 {[%clk 0:00:07]}  Ne3 {[%clk 0:02:34]} 0-1


[Site "Internet"]

[Event "Chessable Masters - Torneo preliminare"]
[White "Durarbayli, Vasif"]
[Black "Svidler, Peter"]
[WhiteFideId "13402935"]
[BlackFideId "4102142"]
[WhiteElo "2531"]
[BlackElo "2752"]
[Result "0-1"]
[Round "3"]
[TimeControl "600+2"]
[Date "2023.03.13"]
[WhiteClock "0:00:02"]
[BlackClock "0:03:09"]

1. e4 {[%clk 0:10:01]}  c5 {[%clk 0:09:59]} 2. Nf3 {[%clk 0:10:02]}  e6 {[%clk 0:09:59]} 3. d4 {[%clk 0:10:01]}  cxd4 {[%clk 0:10:00]} 4. Nxd4 {[%clk 0:10:03]}  a6 {[%clk 0:10:00]} 5. c4 {[%clk 0:09:59]}  Nf6 {[%clk 0:10:00]} 6. Nc3 {[%clk 0:09:59]}  Qc7 {[%clk 0:09:58]} 7. Be3 {[%clk 0:09:54]}  Bb4 {[%clk 0:09:48]} 8. Qb3 {[%clk 0:09:51]}  Bc5 {[%clk 0:09:38]} 9. Be2 {[%clk 0:09:33]}  d6 {[%clk 0:09:34]} 10. O-O {[%clk 0:08:55]}  Nc6 {[%clk 0:08:50]} 11. Rad1 {[%clk 0:08:02]}  O-O {[%clk 0:08:50]} 12. a3 {[%clk 0:07:24]}  e5 {[%clk 0:08:22]} 13. Nxc6 {[%clk 0:05:23]}  Bxe3 {[%clk 0:08:19]} 14. Nxe5 {[%clk 0:05:22]}  Bxf2+ {[%clk 0:08:05]} 15. Rxf2 {[%clk 0:05:24]}  dxe5 {[%clk 0:08:07]} 16. Rxf6 {[%clk 0:04:52]}  gxf6 {[%clk 0:08:06]} 17. Nd5 {[%clk 0:04:53]}  Qc5+ {[%clk 0:07:40]} 18. Kh1 {[%clk 0:04:53]}  Qf2 {[%clk 0:07:19]} 19. Qd3 {[%clk 0:04:28]}  Be6 {[%clk 0:06:33]} 20. Rf1 {[%clk 0:04:26]}  Qh4 {[%clk 0:06:33]} 21. Nxf6+ {[%clk 0:04:18]}  Kh8 {[%clk 0:06:32]} 22. Qe3 {[%clk 0:03:31]}  h6 {[%clk 0:05:52]} 23. g3 {[%clk 0:02:58]}  Qg5 {[%clk 0:05:52]} 24. Qc3 {[%clk 0:02:55]}  Rad8 {[%clk 0:05:47]} 25. h4 {[%clk 0:02:50]}  Qd2 {[%clk 0:05:39]} 26. Qxe5 {[%clk 0:02:14]}  Qd4 {[%clk 0:04:17]} 27. Qf4 {[%clk 0:02:09]}  Qd2 {[%clk 0:04:15]} 28. Qe5 {[%clk 0:01:38]}  Qd4 {[%clk 0:04:15]} 29. Qf4 {[%clk 0:00:32]}  Qd2 {[%clk 0:04:15]} 30. b3 {[%clk 0:00:18]}  Qxf4 {[%clk 0:04:04]} 31. gxf4 {[%clk 0:00:20]}  Rd2 {[%clk 0:04:04]} 32. Re1 {[%clk 0:00:17]}  Rfd8 {[%clk 0:03:46]} 33. f5 {[%clk 0:00:14]}  Bd7 {[%clk 0:03:46]} 34. Kg1 {[%clk 0:00:06]}  Kg7 {[%clk 0:03:25]} 35. Nh5+ {[%clk 0:00:07]}  Kf8 {[%clk 0:03:26]} 36. Kf2 {[%clk 0:00:08]}  Bc6 {[%clk 0:03:25]} 37. e5 {[%clk 0:00:05]}  R8d3 {[%clk 0:03:20]} 38. b4 {[%clk 0:00:03]}  Rf3+ {[%clk 0:03:17]} 39. Kg1 {[%clk 0:00:03]}  Re3 {[%clk 0:03:17]} 40. Kf2 {[%clk 0:00:03]}  Rxe5 {[%clk 0:03:17]} 41. Ng3 {[%clk 0:00:05]}  Ra2 {[%clk 0:03:14]} 42. Rd1 {[%clk 0:00:04]}  Ke7 {[%clk 0:03:11]} 43. Rd4 {[%clk 0:00:02]}  Rxa3 {[%clk 0:03:09]} 44. Nh5 {[%clk 0:00:03]}  Rxf5+ {[%clk 0:03:10]} 45. Ke1 {[%clk 0:00:02]}  Ra1+ {[%clk 0:03:09]} 0-1


[Site "Internet"]

[Event "Chessable Masters - Torneo preliminare"]
[White "Mitrabha, Guha"]
[Black "Frolyanov, Dmitry"]
[WhiteFideId "5057000"]
[BlackFideId "4151976"]
[WhiteElo "2401"]
[BlackElo "2451"]
[Result "1-0"]
[Round "3"]
[TimeControl "600+2"]
[Date "2023.03.13"]
[WhiteClock "0:01:01"]
[BlackClock "0:01:48"]

1. d4 {[%clk 0:09:52]}  d5 {[%clk 0:09:41]} 2. c4 {[%clk 0:09:40]}  e6 {[%clk 0:09:39]} 3. Nf3 {[%clk 0:09:40]}  Nf6 {[%clk 0:09:39]} 4. g3 {[%clk 0:09:41]}  dxc4 {[%clk 0:09:39]} 5. Bg2 {[%clk 0:09:42]}  Nc6 {[%clk 0:09:40]} 6. O-O {[%clk 0:09:43]}  Rb8 {[%clk 0:09:40]} 7. a4 {[%clk 0:09:31]}  a6 {[%clk 0:09:39]} 8. a5 {[%clk 0:08:33]}  Bb4 {[%clk 0:09:39]} 9. Qa4 {[%clk 0:07:00]}  Bd7 {[%clk 0:09:03]} 10. Ne5 {[%clk 0:06:30]}  O-O {[%clk 0:08:24]} 11. Nxd7 {[%clk 0:06:13]}  Qxd7 {[%clk 0:08:19]} 12. Rd1 {[%clk 0:06:14]}  h6 {[%clk 0:08:04]} 13. Na3 {[%clk 0:05:54]}  c3 {[%clk 0:07:56]} 14. Nc4 {[%clk 0:05:41]}  Rfd8 {[%clk 0:07:36]} 15. e3 {[%clk 0:04:46]}  cxb2 {[%clk 0:07:28]} 16. Bxb2 {[%clk 0:04:45]}  Bf8 {[%clk 0:07:29]} 17. d5 {[%clk 0:04:21]}  Nb4 {[%clk 0:06:51]} 18. Qxd7 {[%clk 0:03:58]}  Nxd7 {[%clk 0:06:38]} 19. dxe6 {[%clk 0:03:54]}  fxe6 {[%clk 0:06:40]} 20. Bh3 {[%clk 0:03:21]}  Nc5 {[%clk 0:06:39]} 21. Rab1 {[%clk 0:03:03]}  Nbd3 {[%clk 0:06:06]} 22. Bd4 {[%clk 0:02:57]}  Re8 {[%clk 0:05:17]} 23. Bf1 {[%clk 0:02:19]}  e5 {[%clk 0:05:16]} 24. Bxd3 {[%clk 0:02:14]}  Nxd3 {[%clk 0:05:05]} 25. Ba7 {[%clk 0:02:14]}  Rbd8 {[%clk 0:04:56]} 26. Rxb7 {[%clk 0:02:14]}  e4 {[%clk 0:04:53]} 27. Rxc7 {[%clk 0:02:12]}  Ne5 {[%clk 0:03:58]} 28. Bd4 {[%clk 0:01:42]}  Nf3+ {[%clk 0:03:58]} 29. Kg2 {[%clk 0:01:43]}  Rc8 {[%clk 0:03:45]} 30. Rxc8 {[%clk 0:01:39]}  Rxc8 {[%clk 0:03:47]} 31. Nd2 {[%clk 0:01:34]}  Nxd2 {[%clk 0:03:42]} 32. Rxd2 {[%clk 0:01:35]}  Bb4 {[%clk 0:03:38]} 33. Ra2 {[%clk 0:01:26]}  Rc1 {[%clk 0:03:26]} 34. Bb6 {[%clk 0:01:23]}  Kf7 {[%clk 0:03:15]} 35. g4 {[%clk 0:01:16]}  Ke6 {[%clk 0:03:12]} 36. h4 {[%clk 0:01:15]}  g6 {[%clk 0:03:09]} 37. Rb2 {[%clk 0:01:16]}  Rc4 {[%clk 0:03:09]} 38. Rb1 {[%clk 0:01:11]}  h5 {[%clk 0:03:08]} 39. Kh3 {[%clk 0:01:10]}  Be7 {[%clk 0:03:04]} 40. Rb2 {[%clk 0:01:07]}  Rc1 {[%clk 0:02:56]} 41. Bd4 {[%clk 0:01:05]}  Rh1+ {[%clk 0:02:50]} 42. Kg2 {[%clk 0:01:06]}  Rxh4 {[%clk 0:02:50]} 43. Rb6+ {[%clk 0:01:07]}  Kf7 {[%clk 0:02:35]} 44. gxh5 {[%clk 0:01:08]}  Rg4+ {[%clk 0:02:03]} 45. Kf1 {[%clk 0:01:08]}  gxh5 {[%clk 0:02:03]} 46. Rxa6 {[%clk 0:01:10]}  Rg5 {[%clk 0:02:00]} 47. Ra8 {[%clk 0:01:04]}  h4 {[%clk 0:01:45]} 48. a6 {[%clk 0:01:04]}  h3 {[%clk 0:01:47]} 49. Rh8 {[%clk 0:01:01]}  Rh5 {[%clk 0:01:48]} 50. Rxh5 {[%clk 0:01:01]} 1-0


[Site "Internet"]